bitfinex-derivatives/quotes_ETHF0:USTF0_20230902
["timestamp","ask_amount","ask_price","bid_price","bid_amount"]
[1693648226861,7.81394,1634.6,1634.5,12.04730352]
[1693648227363,10.10892,1634.6,1634.5,12.04730352]
[1693648230568,7.81394,1634.6,1634.5,12.04730352]
[1693648231066,5.519,1634.6,1634.5,12.04730352]
[1693648231359,6.88458,1634.7,1634.5,12.04730352]
[1693648231562,6.88458,1634.7,1634.6,2.26993648]
[1693648231759,6.88458,1634.7,1634.6,9.15466648]
[1693648232862,6.88458,1634.7,1634.6,9.15836009]
[1693648233760,18.25142237,1634.7,1634.6,9.15836009]
[1693648233967,6.88458,1634.7,1634.6,9.15836009]
[1693648234263,6.88458,1634.7,1634.6,11.45327009]
[1693648238369,4.58971,1634.7,1634.6,11.45327009]
[1693648250582,6.8846,1634.7,1634.6,9.15836009]
[1693648252681,4.58971,1634.7,1634.6,11.45327009]
[1693648253178,6.88457,1634.7,1634.6,11.45327009]
[1693648253380,4.5897,1634.7,1634.6,11.45327009]
[1693648257980,4.60889999,1634.7,1634.6,9.18333361]
[1693648259577,6.90375999,1634.7,1634.6,9.18333361]
[1693648259778,4.60889999,1634.7,1634.6,9.18333361]
[1693648259978,6.96485999,1634.7,1634.6,4.59351361]
[1693648260180,0.0611,1634.6,1634.5,2.29488]
[1693648260375,14.87597,1634.6,1634.4,6.88498]
[1693648260684,0.01919999,1634.5,1634.4,6.88498]
[1693648260879,6.90398999,1634.5,1634.4,9.75214352]
[1693648261085,6.90398999,1634.5,1634.4,6.88498]
[1693648261484,6.90398999,1634.5,1634.4,9.75214352]
[1693648261985,12.42298999,1634.5,1634.4,9.75214352]
[1693648262184,12.42298999,1634.5,1634.4,6.88498]
[1693648266287,12.42298999,1634.5,1634.4,9.75214352]
[1693648266885,12.42298999,1634.5,1634.4,6.88498]
[1693648267686,0.0611,1634.4,1634.3,4.59031]
[1693648267992,9.52303,1634.4,1634.3,4.59039]
[1693648268292,11.99373,1634.4,1634.3,4.59039]
[1693648268589,11.99373,1634.4,1634.3,6.88561]
[1693648271998,17.51273,1634.4,1634.3,6.88561]
[1693648272890,17.51273,1634.4,1634.3,6.89119191]
[1693648273592,17.51273,1634.4,1634.3,2.30076191]
[1693648273796,19.80794,1634.4,1634.3,0.00558191]
[1693648274807,17.51273,1634.4,1634.3,4.59602191]
[1693648280105,17.51273,1634.4,1634.3,6.89126191]
[1693648281702,17.51273,1634.4,1634.3,9.75842543]
[1693648283502,17.51273,1634.4,1634.3,6.89126191]
[1693648292613,17.51273,1634.4,1634.3,9.75842543]
[1693648294209,19.80794,1634.4,1634.3,0.00558191]
[1693648294516,19.80794,1634.4,1634.0,6.8868]
[1693648294517,0.0611,1634.2,1634.0,6.8868]
[1693648294811,12.40547,1634.1,1634.0,6.88677]
[1693648295004,15.02226999,1634.1,1634.0,6.88677]
[1693648296112,0.0611,1634.0,1633.9,2.29575]
[1693648296412,14.76266,1634.0,1633.9,4.59148]
[1693648302214,17.35606,1634.0,1633.9,4.59148]
[1693648302808,17.35606,1634.0,1633.7,4.59199]
[1693648303008,5.5802,1633.8,1633.7,6.88798]
[1693648303216,12.46796,1633.8,1633.7,6.88798]
[1693648303415,17.35728,1633.8,1633.7,6.88798]
[1693648303712,17.35728,1633.8,1633.7,4.59197]
[1693648304105,17.35728,1633.8,1633.7,2.29598]
[1693648304314,17.35728,1633.8,1633.7,4.59204]
[1693648305506,22.87628,1633.8,1633.5,2.29632]
[1693648305710,14.765,1633.6,1633.5,4.59266]
[1693648305915,12.4688,1633.6,1633.5,6.889]
[1693648306119,12.4688,1633.6,1633.5,9.75616352]
[1693648306613,12.4076,1633.6,1633.5,12.11372352]
[1693648306815,7.8152,1633.6,1633.5,12.11372352]
[1693648307017,5.519,1633.6,1633.5,12.11372352]
[1693648311315,5.519,1633.6,1633.5,9.18536]
[1693648311316,10.19179999,1633.6,1633.5,9.18536]
[1693648311515,12.77459999,1633.6,1633.5,9.18536]
[1693648314125,10.4592,1633.6,1633.5,12.05252352]
[1693648314921,10.47839999,1633.6,1633.5,9.18536]
[1693648315122,8.18219999,1633.6,1633.5,9.18536]
[1693648315425,10.47839999,1633.6,1633.5,9.18536]
[1693648315821,10.47839999,1633.6,1633.5,12.05252352]
[1693648316026,12.77459999,1633.6,1633.5,12.05252352]
[1693648316927,12.77459999,1633.6,1633.5,9.18536]
[1693648317127,12.77459999,1633.6,1633.5,12.05252352]
[1693648317930,8.18219999,1633.6,1633.5,12.05252352]
[1693648318229,8.163,1633.6,1633.5,12.05252352]
[1693648319732,10.4592,1633.6,1633.5,12.05252352]
[1693648320134,8.163,1633.6,1633.5,12.05252352]
[1693648320330,10.4592,1633.6,1633.5,12.05252352]
[1693648320633,2.644,1633.6,1633.5,12.05252352]
[1693648321635,4.9402,1633.6,1633.5,12.05252352]
[1693648321833,5.519,1633.7,1633.6,0.0612]
[1693648322139,5.519,1633.7,1633.6,9.246]
[1693648322433,5.519,1633.7,1633.6,11.51593648]
[1693648322631,7.81508,1633.7,1633.6,11.51593648]
[1693648322933,10.11116,1633.7,1633.6,11.51593648]
[1693648324134,7.81508,1633.7,1633.6,11.51593648]
[1693648324329,4.95298,1633.7,1633.6,11.51593648]
[1693648324535,7.25539,1634.0,1633.6,17.03493648]
[1693648324731,7.25539,1634.0,1633.9,6.88734]
[1693648325034,7.25539,1634.0,1633.9,14.32024]
[1693648325635,2.664,1634.0,1633.9,14.32024]
[1693648326138,7.25528,1634.0,1633.9,14.32024]
[1693648328536,2.664,1634.0,1633.9,14.32024]
[1693648328741,2.6028,1634.0,1633.9,14.32024]
[1693648328938,5.5802,1634.2,1633.9,19.83924]
[1693648329143,8.0062,1634.2,1633.9,19.83924]
[1693648329440,5.519,1634.2,1633.9,19.83924]
[1693648331852,9.61953,1634.3,1634.0,5.519]
[1693648331853,15.13853,1634.3,1634.0,5.519]
[1693648332046,15.13853,1634.3,1634.1,9.182]
[1693648332250,15.13853,1634.3,1634.1,14.3191]
[1693648336446,15.15772999,1634.3,1634.1,14.3191]
[1693648336750,15.13853,1634.3,1634.1,14.3191]
[1693648337948,15.15772999,1634.3,1634.1,14.3191]
[1693648344657,15.15772999,1634.3,1634.1,12.04916352]
[1693648348066,15.15772999,1634.3,1634.1,14.3191]
[1693648361674,17.45301999,1634.3,1634.1,14.3191]
[1693648364977,0.0611,1634.2,1634.1,9.75366352]
[1693648365177,10.17082,1634.2,1634.1,4.591]
[1693648365377,12.46618,1634.2,1634.1,4.591]
[1693648366373,12.46618,1634.2,1634.1,6.88652]
[1693648373185,12.46618,1634.2,1634.1,9.75368352]
[1693648373475,12.46618,1634.2,1634.1,6.88652]
[1693648379187,12.46618,1634.2,1634.1,4.591]
[1693648381187,14.76154,1634.2,1634.1,4.591]
[1693648387492,15.26226879,1634.2,1634.1,4.591]
[1693648392993,15.26226879,1634.2,1634.0,2.29554]
[1693648393195,2.55479999,1634.1,1634.0,2.2956]
[1693648393496,19.72805999,1634.1,1633.9,4.59143]
[1693648393695,19.72805999,1634.1,1633.8,7.74431982]
[1693648393696,6.88734,1633.9,1633.8,7.63566982]
[1693648394095,9.42294,1633.9,1633.8,7.40328982]
[1693648394294,9.44213999,1633.9,1633.8,7.40328982]
[1693648395802,14.96113999,1633.9,1633.8,7.40328982]
[1693648396301,14.96113999,1633.9,1633.8,10.27045334]
[1693648396900,14.96113999,1633.9,1633.8,7.40328982]
[1693648398803,14.96113999,1633.9,1633.8,10.27045334]
[1693648400103,14.96113999,1633.9,1633.8,7.40328982]
[1693648401703,14.96113999,1633.9,1633.8,10.27045334]
[1693648402304,14.96113999,1633.9,1633.8,7.40328982]
[1693648402500,14.96113999,1633.9,1633.8,5.10736982]
[1693648402698,17.39803999,1633.9,1633.8,5.10736982]
[1693648403109,17.39803999,1633.9,1633.8,7.40328982]
[1693648410212,17.39803999,1633.9,1633.8,10.27045334]
[1693648410409,17.37884,1633.9,1633.8,10.27045334]
[1693648411412,15.08306,1633.9,1633.8,10.27045334]
[1693648411911,7.12716,1633.9,1633.8,10.27045334]
[1693648412108,2.5356,1633.9,1633.8,12.56637334]
[1693648412311,7.81453,1634.1,1633.8,18.08537334]
[1693648412511,10.11007,1634.1,1633.9,2.26993648]
[1693648412712,10.11007,1634.1,1634.0,6.88692]
[1693648412907,10.11007,1634.1,1634.0,9.75408352]
[1693648413214,10.11007,1634.1,1634.0,12.04974352]
[1693648418215,7.07886,1634.2,1634.0,17.56874352]
[1693648418413,7.07886,1634.2,1634.1,2.26993648]
[1693648418613,7.07886,1634.2,1634.1,11.45189648]
[1693648419312,2.488,1634.2,1634.1,11.45189648]
[1693648426431,2.50719999,1634.2,1634.1,11.45189648]
[1693648426626,2.488,1634.2,1634.1,11.45189648]
[1693648432232,2.4269,1634.2,1634.1,11.45189648]
[1693648435024,5.519,1634.3,1634.1,11.45189648]
[1693648435222,8.1299,1634.3,1634.2,17.56756352]
[1693648435423,2.6109,1634.3,1634.2,17.56756352]
[1693648440532,6.94579,1634.6,1634.2,17.56756352]
[1693648440838,2.5233,1634.5,1634.3,7.78893648]
[1693648441034,2.5233,1634.5,1634.4,9.18028]
[1693648441226,2.5233,1634.5,1634.4,12.04744352]
[1693648442136,2.5233,1634.5,1634.4,17.56644352]
[1693648446436,5.1278,1634.5,1634.4,17.56644352]
[1693648453949,5.1278,1634.5,1634.4,18.05256534]
[1693648501397,5.14699999,1634.5,1634.4,18.05256534]
[1693648501592,5.1278,1634.5,1634.4,18.05256534]
[1693648503191,5.14699999,1634.5,1634.4,15.18540182]
[1693648503391,7.50302999,1634.5,1634.4,6.88521]
[1693648503598,9.79795999,1634.5,1634.4,9.1803]
[1693648503994,7.50302999,1634.5,1634.4,9.1803]
[1693648504595,5.20809999,1634.5,1634.4,9.1803]
[1693648508105,7.50301999,1634.5,1634.4,9.1803]
[1693648508406,5.20809999,1634.5,1634.4,9.1803]
[1693648508708,5.20809999,1634.5,1634.4,12.04746352]
[1693648509112,5.20809999,1634.5,1634.4,9.1803]
[1693648509405,5.20809999,1634.5,1634.4,12.04746352]
[1693648509809,5.20809999,1634.5,1634.4,9.1803]
[1693648510507,5.20809999,1634.5,1634.4,12.04746352]
[1693648510908,5.20809999,1634.5,1634.4,9.1803]
[1693648511402,5.20809999,1634.5,1634.4,12.04746352]
[1693648512006,5.20809999,1634.5,1634.4,9.1803]
[1693648512505,5.20809999,1634.5,1634.4,12.04746352]
[1693648513098,5.20809999,1634.5,1634.4,9.1803]
[1693648513701,7.50303999,1634.5,1634.4,12.04746352]
[1693648514703,9.79797999,1634.5,1634.4,12.04746352]
[1693648515909,9.79797999,1634.5,1634.4,9.1803]
[1693648516704,9.79797999,1634.5,1634.4,12.04746352]
[1693648518106,9.79797999,1634.5,1634.4,2.29507]
[1693648518107,17.61191999,1634.5,1634.4,2.29507]
[1693648518311,0.0611,1634.4,1634.2,4.59055]
[1693648518603,6.94715,1634.2,1634.1,6.88633]
[1693648518809,12.46615,1634.2,1634.1,6.88633]
[1693648519511,12.46615,1634.2,1634.1,4.59083]
[1693648524110,14.76151,1634.2,1634.0,6.88673]
[1693648524307,11.86709999,1634.1,1634.0,4.59113]
[1693648524606,11.86709999,1634.1,1634.0,6.88677]
[1693648525309,11.86709999,1634.1,1634.0,9.75393352]
[1693648525608,11.86709999,1634.1,1634.0,6.88677]
[1693648532216,11.86709999,1634.1,1634.0,9.75393352]
[1693648532417,7.11949999,1634.1,1634.0,9.75393352]
[1693648533120,7.1003,1634.1,1634.0,9.75393352]
[1693648533617,7.11949999,1634.1,1634.0,9.75393352]
[1693648534317,7.1003,1634.1,1634.0,9.75393352]
[1693648538919,7.11949999,1634.1,1634.0,9.75393352]
[1693648539319,7.1003,1634.1,1634.0,9.75393352]
[1693648540223,7.11949999,1634.1,1634.0,12.04959352]
[1693648542024,7.11949999,1634.1,1634.0,17.56859352]
[1693648544123,7.11949999,1634.1,1634.0,14.70143]
[1693648544827,7.11949999,1634.1,1634.0,17.56859352]
[1693648547525,7.11949999,1634.1,1634.0,14.70143]
[1693648548031,7.11949999,1634.1,1634.0,17.56859352]
[1693648549536,7.11949999,1634.1,1634.0,14.70143]
[1693648549829,7.11949999,1634.1,1634.0,17.56859352]
[1693648551021,7.1003,1634.1,1634.0,17.56859352]
[1693648551731,7.11949999,1634.1,1634.0,17.56859352]
[1693648552137,7.1003,1634.1,1634.0,17.56859352]
[1693648552433,7.11949999,1634.1,1634.0,17.56859352]
[1693648552927,9.68549999,1634.1,1634.0,17.56859352]
[1693648554331,9.6663,1634.1,1634.0,17.56859352]
[1693648555935,9.68549999,1634.1,1634.0,17.56859352]
[1693648556833,9.68549999,1634.1,1634.0,14.70143]
[1693648558937,9.68549999,1634.1,1634.0,17.56859352]
[1693648559538,9.68549999,1634.1,1634.0,14.70143]
[1693648559738,9.68549999,1634.1,1634.0,17.56859352]
[1693648560239,9.68549999,1634.1,1634.0,14.70143]
[1693648560833,9.68549999,1634.1,1634.0,17.56859352]
[1693648561333,9.68549999,1634.1,1634.0,14.70143]
[1693648561744,9.68549999,1634.1,1634.0,17.56859352]
[1693648562436,9.68549999,1634.1,1634.0,14.70143]
[1693648563040,9.68549999,1634.1,1634.0,17.56859352]
[1693648563634,9.68549999,1634.1,1634.0,14.70143]
[1693648563936,9.6663,1634.1,1634.0,17.56859352]
[1693648565336,9.68549999,1634.1,1634.0,14.70143]
[1693648567245,9.68549999,1634.1,1634.0,17.56859352]
[1693648568946,9.68549999,1634.1,1634.0,14.70143]
[1693648570339,9.68549999,1634.1,1634.0,17.56859352]
[1693648570843,9.68549999,1634.1,1634.0,14.70143]
[1693648571838,9.68549999,1634.1,1634.0,9.18243]
[1693648574143,9.68549999,1634.1,1634.0,12.04959352]
[1693648574346,9.68549999,1634.1,1634.0,9.18243]
[1693648574945,9.68549999,1634.1,1634.0,12.04959352]
[1693648575746,9.6663,1634.1,1634.0,12.04959352]
[1693648577747,9.68549999,1634.1,1634.0,9.18243]
[1693648578148,9.68549999,1634.1,1634.0,12.04959352]
[1693648579148,9.6663,1634.1,1634.0,12.04959352]
[1693648580853,9.68549999,1634.1,1634.0,12.04959352]
[1693648581149,9.6663,1634.1,1634.0,12.04959352]
[1693648581849,9.6663,1634.1,1634.0,9.18243]
[1693648581850,9.68549999,1634.1,1634.0,9.18243]
[1693648582149,9.68549999,1634.1,1634.0,14.70143]
[1693648583351,9.6663,1634.1,1634.0,17.56859352]
[1693648583547,9.68549999,1634.1,1634.0,17.56859352]
[1693648583747,9.6663,1634.1,1634.0,17.56859352]
[1693648584150,9.68549999,1634.1,1634.0,17.56859352]
[1693648587550,9.68549999,1634.1,1634.0,14.70143]
[1693648592147,9.68549999,1634.1,1634.0,17.56859352]
[1693648592856,9.68549999,1634.1,1634.0,14.70143]
[1693648593156,9.68549999,1634.1,1634.0,17.56859352]
[1693648593957,9.68549999,1634.1,1634.0,14.70143]
[1693648594958,9.68549999,1634.1,1634.0,17.56859352]
[1693648596053,9.68549999,1634.1,1634.0,14.70143]
[1693648596454,9.68549999,1634.1,1634.0,17.56859352]
[1693648599360,9.68549999,1634.1,1634.0,14.70143]
[1693648600962,9.68549999,1634.1,1634.0,17.56859352]
[1693648601557,9.68549999,1634.1,1634.0,14.70143]
[1693648601958,9.68549999,1634.1,1634.0,17.56859352]
[1693648604859,9.68549999,1634.1,1634.0,14.70143]
[1693648605263,9.68549999,1634.1,1634.0,17.56859352]
[1693648606856,9.68549999,1634.1,1634.0,14.70143]
[1693648607252,9.68549999,1634.1,1634.0,17.56859352]
[1693648607962,9.6663,1634.1,1634.0,17.56859352]
[1693648608258,5.0753,1634.1,1634.0,17.56859352]
[1693648608466,0.0612,1634.2,1634.0,17.56859352]
[1693648608761,0.0612,1634.2,1634.1,17.44126211]
[1693648610158,2.5971,1634.2,1634.1,17.44126211]
[1693648610358,2.5359,1634.2,1634.1,17.44126211]
[1693648610757,2.5971,1634.2,1634.1,17.44126211]
[1693648611264,2.5359,1634.2,1634.1,17.44126211]
[1693648611454,2.5971,1634.2,1634.1,17.44126211]
[1693648617866,2.61629999,1634.2,1634.1,17.44126211]
[1693648618370,2.5971,1634.2,1634.1,17.44126211]
[1693648622973,2.5971,1634.2,1634.1,17.92534618]
[1693648624368,5.16,1634.2,1634.1,17.92534618]
[1693648626080,5.0988,1634.2,1634.1,17.92534618]
[1693648632382,5.16,1634.2,1634.1,17.92534618]
[1693648632582,5.17919999,1634.2,1634.1,17.92534618]
[1693648633086,5.16,1634.2,1634.1,17.92534618]
[1693648642702,5.17919999,1634.2,1634.1,17.92534618]
[1693648642902,5.17919999,1634.2,1634.1,15.6554097]
[1693648643101,5.16,1634.2,1634.1,15.6554097]
[1693648644707,5.17919999,1634.2,1634.1,15.6554097]
[1693648645004,5.16,1634.2,1634.1,15.6554097]
[1693648645703,5.17919999,1634.2,1634.1,15.6554097]
[1693648646605,5.16,1634.2,1634.1,15.6554097]
[1693648647005,5.17919999,1634.2,1634.1,15.6554097]
[1693648647207,5.16,1634.2,1634.1,15.6554097]
[1693648648010,5.17919999,1634.2,1634.1,15.6554097]
[1693648648219,5.16,1634.2,1634.1,15.6554097]
[1693648650029,5.17919999,1634.2,1634.1,15.6554097]
[1693648650322,5.16,1634.2,1634.1,15.6554097]
[1693648656431,5.17919999,1634.2,1634.1,15.6554097]
[1693648659835,5.16,1634.2,1634.1,15.6554097]
[1693648660628,5.17919999,1634.2,1634.1,15.6554097]
[1693648661935,5.16,1634.2,1634.1,15.6554097]
[1693648663036,5.17919999,1634.2,1634.1,15.6554097]
[1693648664433,5.16,1634.2,1634.1,15.6554097]
[1693648665035,5.17919999,1634.2,1634.1,15.6554097]
[1693648665436,5.16,1634.2,1634.1,15.6554097]
[1693648667040,5.17919999,1634.2,1634.1,15.6554097]
[1693648669542,5.0988,1634.2,1634.1,15.6554097]
[1693648674049,2.5359,1634.2,1634.1,15.6554097]
[1693648688959,2.571,1634.4,1634.1,15.6554097]
[1693648689157,2.4332,1634.4,1634.3,16.9952]
[1693648689355,2.3947,1634.5,1634.3,16.9952]
[1693648689556,1.7828,1634.5,1634.4,14.69932]
[1693648689758,4.65026,1634.8,1634.4,19.83642]
[1693648689955,4.65026,1634.8,1634.7,12.40304]
[1693648690760,4.65026,1634.8,1634.7,17.54014]
[1693648691456,4.65026,1634.8,1634.7,19.83482]
[1693648691764,2.35566,1634.8,1634.7,19.83482]
[1693648691960,0.0611,1634.8,1634.7,19.83482]
[1693648692352,4.65018,1634.8,1634.7,19.83482]
[1693648692552,7.28038,1634.8,1634.7,19.83482]
[1693648692757,9.66458,1634.8,1634.7,19.83482]
[1693648696159,5.0755,1634.8,1634.7,19.83482]
[1693648696569,9.66458,1634.8,1634.7,19.83482]
[1693648711269,11.95912,1634.8,1634.7,19.83482]
[1693648719480,11.97831999,1634.8,1634.7,19.83482]
[1693648719979,11.95912,1634.8,1634.7,19.83482]
[1693648731284,11.97831999,1634.8,1634.7,17.56488352]
[1693648732082,11.95912,1634.8,1634.7,17.56488352]
[1693648732387,11.97831999,1634.8,1634.7,17.56488352]
[1693648732685,11.95912,1634.8,1634.7,17.56488352]
[1693648733486,11.97831999,1634.8,1634.7,17.56488352]
[1693648733680,11.95912,1634.8,1634.7,17.56488352]
[1693648734583,11.97831999,1634.8,1634.7,17.56488352]
[1693648734781,11.95912,1634.8,1634.7,17.56488352]
[1693648735085,11.97831999,1634.8,1634.7,17.56488352]
[1693648735988,11.95912,1634.8,1634.7,17.56488352]
[1693648737088,11.97831999,1634.8,1634.7,17.56488352]
[1693648738280,11.95912,1634.8,1634.7,17.56488352]
[1693648738993,11.97831999,1634.8,1634.7,17.56488352]
[1693648741093,11.97831999,1634.8,1634.7,14.69772]
[1693648741896,11.97831999,1634.8,1634.7,17.56488352]
[1693648742590,11.95912,1634.8,1634.7,17.56488352]
[1693648743400,11.97831999,1634.8,1634.7,17.56488352]
[1693648743900,11.95912,1634.8,1634.7,17.56488352]
[1693648745201,11.97831999,1634.8,1634.7,17.56488352]
[1693648745699,11.97831999,1634.8,1634.7,14.69772]
[1693648746091,11.97831999,1634.8,1634.7,17.56488352]
[1693648747700,11.97831999,1634.8,1634.7,14.69772]
[1693648748097,11.97831999,1634.8,1634.7,17.56488352]
[1693648748694,11.97831999,1634.8,1634.7,14.69772]
[1693648751199,11.97831999,1634.8,1634.7,17.56488352]
[1693648751799,11.97831999,1634.8,1634.7,14.69772]
[1693648754806,11.97831999,1634.8,1634.7,17.56488352]
[1693648755798,11.95912,1634.8,1634.7,17.56488352]
[1693648756005,11.97831999,1634.8,1634.7,17.56488352]
[1693648756300,11.97831999,1634.8,1634.7,14.69772]
[1693648756803,11.97831999,1634.8,1634.7,17.56488352]
[1693648757207,11.97831999,1634.8,1634.7,14.69772]
[1693648758005,19.79185999,1634.8,1634.6,6.88419]
[1693648758303,19.79185999,1634.8,1634.6,4.58943]
[1693648758505,19.79185999,1634.8,1634.6,2.29469]
[1693648762008,5.5801,1634.7,1634.6,2.29469]
[1693648762208,14.75882,1634.7,1634.6,2.29469]
[1693648766499,14.69772,1634.7,1634.6,2.29469]
[1693648770408,0.0611,1634.6,1634.4,13.06640588]
[1693648770608,9.19903999,1634.5,1634.4,0.48090588]
[1693648770808,9.19903999,1634.5,1634.3,9.50823]
[1693648774519,9.19903999,1634.5,1634.3,9.99033414]
[1693648779316,9.19903999,1634.5,1634.3,12.85749766]
[1693648780425,9.19903999,1634.5,1634.3,9.99033414]
[1693648780924,9.19903999,1634.5,1634.3,12.85749766]
[1693648783520,9.19903999,1634.5,1634.3,9.99033414]
[1693648786726,0.0611,1634.4,1634.3,7.69513414]
[1693648786923,9.2415,1634.4,1634.3,5.07243414]
[1693648787129,14.2469,1634.4,1634.3,5.07243414]
[1693648788225,14.2469,1634.4,1634.3,7.36767414]
[1693648789426,14.2469,1634.4,1634.3,5.07243414]
[1693648791825,14.2469,1634.4,1634.3,7.36767414]
[1693648792028,14.2469,1634.4,1634.3,5.07243414]
[1693648794730,14.2469,1634.4,1634.3,7.93959766]
[1693648795029,14.2469,1634.4,1634.3,5.07243414]
[1693648796028,14.2469,1634.4,1634.3,7.93959766]
[1693648796221,14.2469,1634.4,1634.3,10.23483766]
[1693648796432,14.2469,1634.4,1634.3,7.36767414]
[1693648797229,14.2469,1634.4,1634.3,5.07243414]
[1693648797934,14.2469,1634.4,1634.3,7.93959766]
[1693648798536,14.2469,1634.4,1634.3,5.07243414]
[1693648799225,14.2469,1634.4,1634.3,7.93959766]
[1693648799425,14.2469,1634.4,1634.3,5.07243414]
[1693648800937,14.2469,1634.4,1634.3,7.36767414]
[1693648801246,14.2469,1634.4,1634.3,10.23483766]
[1693648801444,14.2469,1634.4,1634.3,5.07243414]
[1693648802432,14.2469,1634.4,1634.3,7.36767414]
[1693648803234,14.2469,1634.4,1634.3,5.07243414]
[1693648803434,14.2469,1634.4,1634.3,7.36767414]
[1693648805245,6.8853,1634.4,1634.3,10.23483766]
[1693648805449,4.5902,1634.4,1634.3,18.04907766]
[1693648805650,6.8853,1634.4,1634.3,15.75383766]
[1693648808950,6.90449999,1634.4,1634.3,15.75383766]
[1693648809354,6.8853,1634.4,1634.3,15.75383766]
[1693648813061,6.8853,1634.4,1634.3,18.04907766]
[1693648813257,6.8853,1634.4,1634.3,15.75383766]
[1693648814063,6.8853,1634.4,1634.3,18.04907766]
[1693648821659,6.8853,1634.4,1634.3,15.75383766]
[1693648822767,6.9464,1634.4,1634.3,18.04907766]
[1693648823166,6.96559999,1634.4,1634.3,18.04907766]
[1693648823370,6.9464,1634.4,1634.3,18.04907766]
[1693648830183,12.0262,1634.4,1634.3,18.04907766]
[1693648834174,12.0262,1634.4,1634.3,15.75383766]
[1693648834777,12.04539999,1634.4,1634.3,15.75383766]
[1693648835282,12.04539999,1634.4,1634.3,18.04907766]
[1693648836078,12.04539999,1634.4,1634.3,12.88667414]
[1693648836782,12.04539999,1634.4,1634.3,15.75383766]
[1693648836982,12.04539999,1634.4,1634.3,12.88667414]
[1693648837582,12.04539999,1634.4,1634.3,15.75383766]
[1693648838282,12.04539999,1634.4,1634.3,18.04907766]
[1693648839184,12.04539999,1634.4,1634.3,15.18191414]
[1693648839573,12.04539999,1634.4,1634.3,18.04907766]
[1693648841178,12.0262,1634.4,1634.3,18.04907766]
[1693648841483,12.04539999,1634.4,1634.3,18.04907766]
[1693648842179,12.04539999,1634.4,1634.3,15.75383766]
[1693648843384,12.04539999,1634.4,1634.3,12.88667414]
[1693648843979,12.04539999,1634.4,1634.3,15.75383766]
[1693648847187,12.0262,1634.4,1634.3,15.75383766]
[1693648848788,12.04539999,1634.4,1634.3,15.75383766]
[1693648850393,12.0262,1634.4,1634.3,15.75383766]
[1693648851191,12.04539999,1634.4,1634.3,15.75383766]
[1693648852692,12.0262,1634.4,1634.3,15.75383766]
[1693648855490,12.04539999,1634.4,1634.3,15.75383766]
[1693648855893,12.0262,1634.4,1634.3,15.75383766]
[1693648856496,12.04539999,1634.4,1634.3,12.88667414]
[1693648859192,12.0262,1634.4,1634.3,15.75383766]
[1693648859590,12.04539999,1634.4,1634.3,12.88667414]
[1693648860193,12.04539999,1634.4,1634.3,15.75383766]
[1693648860695,12.04539999,1634.4,1634.3,12.88667414]
[1693648861198,12.04539999,1634.4,1634.3,15.75383766]
[1693648862999,12.04539999,1634.4,1634.3,12.88667414]
[1693648867800,12.04539999,1634.4,1634.3,15.75383766]
[1693648869503,12.04539999,1634.4,1634.3,12.88667414]
[1693648870005,12.04539999,1634.4,1634.3,15.75383766]
[1693648870302,12.04539999,1634.4,1634.3,12.88667414]
[1693648871101,12.04539999,1634.4,1634.3,15.75383766]
[1693648871798,12.04539999,1634.4,1634.3,12.88667414]
[1693648873303,12.04539999,1634.4,1634.3,15.75383766]
[1693648875606,12.0262,1634.4,1634.3,15.75383766]
[1693648875904,12.04539999,1634.4,1634.3,15.75383766]
[1693648876907,12.04539999,1634.4,1634.3,12.88667414]
[1693648877506,12.04539999,1634.4,1634.3,15.75383766]
[1693648878003,12.04539999,1634.4,1634.3,12.88667414]
[1693648878505,12.04539999,1634.4,1634.3,15.75383766]
[1693648879807,12.0262,1634.4,1634.3,15.75383766]
[1693648881707,12.04539999,1634.4,1634.3,15.75383766]
[1693648882507,19.85949999,1634.4,1634.2,4.59052]
[1693648882703,19.85949999,1634.4,1634.1,2.29546]
[1693648882704,4.65186,1634.2,1634.1,2.29546]
[1693648882908,9.26181999,1634.2,1634.1,2.29546]
[1693648883108,14.22941999,1634.2,1634.1,2.29546]
[1693648883708,14.22941999,1634.2,1634.0,12.40581]
[1693648890728,14.22941999,1634.2,1634.0,10.1102]
[1693648891923,19.74841999,1634.2,1634.0,4.5912]
[1693648892327,19.74841999,1634.2,1634.0,2.29559]
[1693648903539,19.74841999,1634.2,1633.9,12.9074119]
[1693648906545,19.74841999,1634.2,1634.0,2.86716352]
[1693648906841,19.74841999,1634.2,1634.0,5.16280352]
[1693648907041,19.74841999,1634.2,1634.0,2.29564]
[1693648930660,19.74841999,1634.2,1634.0,4.5913]
[1693648935661,19.74841999,1634.2,1634.0,7.45846352]
[1693648942564,19.74841999,1634.2,1634.0,4.5913]
[1693648944062,19.74841999,1634.2,1634.0,7.45846352]
[1693648945065,19.74841999,1634.2,1634.0,4.5913]
[1693648948360,19.74841999,1634.2,1634.0,7.45846352]
[1693648949464,19.74841999,1634.2,1634.0,4.5913]
[1693648950669,19.74841999,1634.2,1634.0,7.45846352]
[1693648960484,19.74841999,1634.2,1634.0,4.5913]
[1693648965774,19.74841999,1634.2,1634.0,7.45846352]
[1693648968689,19.74841999,1634.2,1634.0,4.5913]
[1693648969490,19.74841999,1634.2,1634.0,2.29564]
[1693648970887,19.74841999,1634.2,1634.0,4.5913]
[1693648971185,19.74841999,1634.2,1634.0,7.45846352]
[1693648979799,31.15544733,1634.2,1634.0,7.45846352]
[1693648979992,19.74841999,1634.2,1634.0,7.45846352]
[1693648983694,19.74841999,1634.2,1634.0,4.5913]
[1693648984594,19.74841999,1634.2,1634.0,7.45846352]
[1693648984989,10.10976,1634.2,1634.0,12.02406]
[1693648985189,4.59027,1634.4,1634.2,6.88614]
[1693648985394,13.70169539,1634.5,1634.3,8.38616352]
[1693648985698,4.59009,1634.5,1634.4,5.519]
[1693648985896,4.59009,1634.5,1634.4,12.4043]
[1693648986203,4.59009,1634.5,1634.4,14.67423648]
[1693648986499,6.88515,1634.5,1634.4,14.67423648]
[1693648993489,6.90434999,1634.5,1634.4,14.67423648]
[1693648993898,6.88515,1634.5,1634.4,14.67423648]
[1693648994597,6.90434999,1634.5,1634.4,14.67423648]
[1693648996197,6.88515,1634.5,1634.4,14.67423648]
[1693649001409,6.90434999,1634.5,1634.4,14.67423648]
[1693649001810,6.88515,1634.5,1634.4,14.67423648]
[1693649008115,6.90434999,1634.5,1634.4,14.67423648]
[1693649009316,6.88515,1634.5,1634.4,14.67423648]